bitfinex/quotes_ETHUSD_20260120
["timestamp","ask_amount","ask_price","bid_price","bid_amount"]
[1768948431709,6.76321972,2941.9,2937.9,0.42782157]
[1768948431915,9.363635,2942.1,2937.0,6.76321972]
[1768948432134,9.363635,2942.1,2936.0,0.33076167]
[1768948432135,9.14439585,2941.9,2936.0,0.33076167]
[1768948432335,9.14439585,2940.3,2935.8,0.01194815]
[1768948432552,1.76154112,2938.5,2935.8,0.01194815]
[1768948432750,0.19671397,2935.0,2933.9,0.002]
[1768948433059,1.71431422,2938.7,2933.0,0.34917834]
[1768948433060,6.67061985,2936.9,2933.0,0.34917834]
[1768948433271,14.7625,2940.7,2935.4,6.67061985]
[1768948433272,1.59076156,2940.2,2935.4,6.67061985]
[1768948433572,9.14439585,2940.5,2936.6,6.67061985]
[1768948433711,9.14439585,2940.5,2935.5,1.12137181]
[1768948433712,6.67061985,2939.9,2935.5,1.15382773]
[1768948433920,6.67061985,2938.4,2933.9,3.4083606]
[1768948434174,0.556,2939.8,2933.9,3.4083606]
[1768948434175,14.236907,2939.5,2934.6,6.67061985]
[1768948434374,14.7625,2940.2,2936.3,6.67061985]
[1768948434375,3.40124485,2940.1,2936.3,6.67061985]
[1768948434580,14.7625,2940.2,2935.6,2.72241207]
[1768948434872,24.96597351,2940.2,2935.4,0.44619849]
[1768948435174,6.67061985,2937.5,2933.9,0.44619849]
[1768948435344,4.974413,2937.4,2932.8,3.40967365]
[1768948435546,6.67061985,2936.2,2931.9,0.38416729]
[1768948435744,6.67061985,2936.2,2929.7,29.77915596]
[1768948435745,9.14439585,2936.0,2930.4,0.07473207]
[1768948435940,1.73642195,2937.0,2931.4,3.41126496]
[1768948435941,6.67061985,2934.7,2931.4,3.41126496]
[1768948436148,1.10312838,2935.9,2931.5,0.38647843]
[1768948436348,9.14439585,2938.1,2933.1,6.67061985]
[1768948436560,0.67888849,2938.2,2933.3,1.70155019]
[1768948436862,0.012,2940.3,2933.0,0.07473207]
[1768948436863,13.65701662,2939.3,2937.4,6.67061985]
[1768948437066,9.14439585,2941.7,2937.4,6.67061985]
[1768948437067,3.39775509,2943.2,2938.2,6.67061985]
[1768948437370,8.748346,2943.0,2938.3,0.66706198]
[1768948437571,6.67061985,2942.6,2938.3,0.66706198]
[1768948437781,0.17568908,2943.1,2939.2,6.67061985]
[1768948438075,6.67061985,2943.8,2939.3,1.13515837]
[1768948438274,18.269741,2944.3,2939.5,6.8038782]
[1768948438434,3.130371,2944.3,2939.6,6.67061985]
[1768948438632,6.67061985,2944.2,2939.5,3.4019391]
[1768948438834,1.77242978,2944.8,2939.5,3.4019391]
[1768948438835,9.14439585,2944.1,2940.3,6.67061985]
[1768948439051,3.39397524,2946.4,2941.1,6.67061985]
[1768948439052,9.14439585,2946.0,2941.1,6.67061985]
[1768948439274,6.67061985,2945.7,2941.2,0.66706198]
[1768948439433,6.67061985,2944.1,2939.5,6.8038782]
[1768948439634,9.14439585,2944.7,2939.5,10.06122543]
[1768948439635,3.04868,2944.6,2939.5,10.06122543]
[1768948439871,9.14439585,2944.7,2940.5,6.67061985]
[1768948440072,9.14439585,2944.7,2939.8,1.64108095]
[1768948440275,3.39443312,2946.0,2942.5,6.67061985]
[1768948440578,0.012,2949.1,2941.4,13.59896644]
[1768948440579,1.69604846,2948.1,2943.2,6.67061985]
[1768948440750,3.39178509,2948.3,2943.9,6.67061985]
[1768948440937,10.84044431,2948.1,2943.4,0.43564417]
[1768948441140,9.14439585,2947.3,2941.4,13.59896644]
[1768948441337,15.8150157,2944.8,2940.1,6.67061985]
[1768948441650,9.14439585,2943.7,2938.7,6.67061985]
[1768948441852,0.73598033,2946.0,2941.3,10.19953052]
[1768948441853,9.14439585,2945.4,2941.3,10.19953052]
[1768948442056,18.269741,2946.9,2942.9,6.67061985]
[1768948442261,9.14439585,2947.0,2942.9,6.67061985]
[1768948442262,9.14439585,2947.0,2943.8,6.7939398]
[1768948442574,3.39143441,2948.7,2943.8,3.3969699]
[1768948442575,7.38666831,2948.1,2943.8,3.3969699]
[1768948442786,2.123,2947.2,2943.8,3.39501875]
[1768948442999,2.123,2947.2,2943.9,0.33950188]
[1768948443000,6.67061985,2945.9,2943.9,0.33950188]
[1768948443199,6.67061985,2945.9,2941.4,1.01995305]
[1768948443200,6.67061985,2945.9,2941.4,7.6905729]
[1768948443471,4.525559,2946.8,2942.3,0.2335703]
[1768948443670,1.04029898,2947.2,2940.5,16.12018187]
[1768948443671,6.67061985,2944.6,2940.5,16.12018187]
[1768948443976,6.67061985,2944.6,2941.7,3.39932053]
[1768948444180,9.14439585,2945.8,2940.9,6.67061985]
[1768948444485,9.14439585,2945.8,2940.6,1.61201819]
[1768948444486,9.14439585,2947.5,2941.5,18.67811417]
[1768948444665,0.0209092,2950.7,2941.5,3.39962604]
[1768948444666,6.67061985,2945.1,2941.5,3.39962604]
[1768948444840,6.67061985,2943.7,2939.5,6.67061985]
[1768948445141,9.14439585,2944.4,2939.5,6.67061985]
[1768948445342,6.67061985,2943.1,2939.3,1.01973007]
[1768948445561,0.01303294,2943.0,2939.3,1.01973007]
[1768948445768,0.00963294,2943.0,2939.5,6.67061985]
[1768948445981,6.67061985,2944.2,2939.6,0.66706198]
[1768948446253,0.66706198,2945.0,2941.3,6.67061985]
[1768948446448,9.14439585,2946.2,2942.8,0.2335703]
[1768948446736,9.14439585,2947.8,2944.2,0.2335703]
[1768948447147,9.14439585,2947.8,2942.8,0.45256701]
[1768948447148,9.14439585,2947.8,2941.9,8.34852933]
[1768948447149,6.67061985,2946.4,2941.9,8.34852933]
[1768948447334,9.14439585,2946.2,2942.0,0.83485293]
[1768948447564,9.14439585,2944.7,2940.7,6.80110176]
[1768948447764,9.14439585,2944.7,2940.6,6.67061985]
[1768948447765,9.14439585,2944.5,2940.6,3.40061927]
[1768948447946,9.14439585,2944.5,2941.0,0.128]
[1768948448139,9.14439585,2944.5,2941.1,0.3385]
[1768948448342,3.39627767,2944.4,2940.7,0.128]
[1768948448539,9.14439585,2944.5,2940.7,0.128]
[1768948448781,9.14439585,2944.5,2941.2,3.254849]
[1768948448941,6.67061985,2945.3,2940.9,1.64989957]
[1768948449258,9.14439585,2946.1,2942.5,0.128]
[1768948449459,9.14439585,2946.1,2943.0,6.67061985]
[1768948449972,27.41413685,2945.6,2941.3,6.67061985]
[1768948450149,6.67061985,2945.8,2939.6,0.66706198]
[1768948450150,6.67061985,2945.1,2940.1,0.33428406]
[1768948450453,9.14439585,2944.2,2940.2,6.80225834]
[1768948450657,9.14439585,2944.2,2940.3,0.68022583]
[1768948450658,2.539472,2944.1,2940.3,0.68022583]
[1768948450865,10.90327826,2942.9,2939.6,0.66706198]
[1768948451053,12.6374033,2943.6,2937.0,6.67061985]
[1768948451054,0.128,2941.2,2937.0,6.67061985]
[1768948451260,18.269741,2940.5,2936.1,6.67061985]
[1768948451441,9.14439585,2940.6,2936.2,0.70834538]
[1768948451442,9.14439585,2939.8,2936.2,0.70834538]
[1768948451749,9.14439585,2939.8,2939.6,0.002]
[1768948452073,6.67061985,2942.9,2939.6,0.002]
[1768948452292,13.5832654,2944.8,2939.6,0.002]
[1768948452293,9.14439585,2944.7,2940.3,0.2335703]
[1768948452500,0.91443959,2944.6,2942.9,0.17564859]
[1768948452785,0.91443959,2944.6,2940.4,0.19648072]
[1768948452786,2.829518,2944.5,2940.4,0.19648072]
[1768948452941,9.14439585,2944.5,2940.8,0.128]
[1768948453141,9.14439585,2944.5,2941.0,0.128]
[1768948453343,9.14439585,2944.5,2941.5,6.67061985]
[1768948453542,3.39594698,2944.7,2940.4,0.19648072]
[1768948453543,15.8150157,2943.7,2940.4,0.19648072]
[1768948453775,15.8150157,2943.7,2940.0,3.40136054]
[1768948453776,9.14439585,2943.6,2940.0,6.80272108]
[1768948453952,6.67061985,2943.7,2939.6,0.002]
[1768948453953,18.269741,2943.5,2939.6,0.002]
[1768948454158,9.14439585,2943.0,2939.9,3.40144984]
[1768948454356,0.128,2942.8,2939.6,0.002]
[1768948454571,9.14439585,2943.0,2939.6,0.002]
[1768948454883,9.14439585,2943.0,2939.9,0.128]
[1768948455093,14.23266299,2944.7,2940.8,2.268398]
[1768948455292,10.83667777,2944.7,2941.9,0.128]
[1768948455446,0.17585941,2944.6,2941.9,0.128]
[1768948455951,10.83667777,2944.7,2941.9,6.67061985]
[1768948456146,0.001,2945.8,2941.9,6.67061985]
[1768948456147,0.001,2945.8,2942.2,2.268]
[1768948456364,0.001,2945.8,2942.2,6.79763442]
[1768948456680,0.001,2945.8,2942.6,6.67061985]
[1768948456884,0.001,2945.8,2942.8,0.128]
[1768948457182,0.001,2945.8,2942.0,0.66706198]
[1768948457183,10.83667777,2945.0,2942.0,0.66706198]
[1768948457386,6.67061985,2945.1,2940.0,0.67986199]
[1768948457387,2.756,2944.7,2940.2,6.67061985]
[1768948457557,10.83667777,2944.8,2941.7,0.128]
[1768948457921,0.001,2945.8,2942.4,0.128]
[1768948458108,0.001,2945.8,2943.7,6.67061985]
[1768948458267,11.75111736,2947.7,2943.8,0.66706198]
[1768948458586,11.75111736,2947.7,2941.7,0.128]
[1768948458587,10.83667777,2946.0,2941.7,0.128]
[1768948458800,10.83667777,2945.5,2940.7,0.36655319]
[1768948459107,18.269741,2945.9,2939.6,0.5887]
[1768948459108,6.67061985,2942.8,2940.2,1.0193905]
[1768948459388,10.83667777,2942.0,2939.6,0.5887]
[1768948459776,0.128,2943.4,2939.8,0.128]
[1768948459777,6.67061985,2943.4,2939.8,0.128]
[1768948459979,6.67061985,2944.1,2940.2,0.128]
[1768948460282,10.83667777,2945.1,2940.6,0.128]
[1768948460283,6.67061985,2943.9,2940.6,0.128]
[1768948460446,10.83667777,2945.1,2940.6,0.128]
[1768948460650,6.67061985,2944.4,2940.7,0.2335703]
[1768948460888,6.67061985,2944.4,2940.8,0.128]
[1768948461286,6.67061985,2944.4,2941.1,0.2335703]
[1768948461456,6.67061985,2943.0,2940.3,0.4563637]
[1768948461656,10.83667777,2942.9,2938.5,0.002]
[1768948461856,6.67061985,2941.4,2938.5,0.002]
[1768948462291,6.67061985,2942.1,2938.5,0.002]
[1768948462459,6.67061985,2942.1,2939.6,2e-08]
[1768948462659,6.67061985,2941.9,2939.6,2e-08]
[1768948463074,6.67061985,2943.3,2939.6,2e-08]
[1768948463388,7.33768183,2943.3,2939.6,2e-08]
[1768948463849,6.67061985,2941.2,2939.6,2e-08]
[1768948464281,6.67061985,2942.1,2939.6,2e-08]
[1768948464470,6.67061985,2942.8,2939.6,2e-08]
[1768948464978,11.50373975,2943.3,2939.6,0.41707398]
[1768948464979,0.128,2943.2,2939.6,0.41707398]
[1768948465179,11.50373975,2943.3,2938.5,0.002]
[1768948465180,6.67061985,2940.5,2938.5,0.002]
[1768948465485,6.67061985,2940.5,2936.1,6.67361985]
[1768948465486,6.67061985,2939.0,2936.1,0.003]
[1768948465680,6.67061985,2938.8,2936.1,0.003]
[1768948466059,6.67061985,2938.1,2936.1,0.003]
[1768948466270,6.67061985,2938.1,2932.8,1.01309406]
[1768948466271,6.67061985,2936.7,2932.8,1.01309406]
[1768948466487,17.50729762,2936.7,2932.9,0.41707396]
[1768948466654,17.50729762,2936.7,2933.0,4.082639]
[1768948466854,17.50729762,2936.7,2931.6,0.24851739]
[1768948466855,1.7516456,2937.8,2933.7,6.67061985]
[1768948467054,0.66706198,2938.1,2934.4,6.67061985]
[1768948467283,6.67061985,2940.7,2936.5,6.67061985]
[1768948467460,12.61535563,2941.3,2936.5,6.67061985]
[1768948467461,10.83667777,2941.3,2937.5,30.0]
[1768948467665,6.67061985,2940.6,2936.7,11.94]
[1768948467861,10.83667777,2941.2,2937.1,0.128]
[1768948468065,10.83667777,2941.2,2935.5,1.0956698]
[1768948468066,17.50729762,2939.9,2935.9,6.67061985]
[1768948468271,6.67061985,2939.2,2935.1,0.41707396]
[1768948468580,6.67061985,2939.2,2934.8,0.25125766]
[1768948468581,17.50729762,2939.2,2934.5,3.365969]
[1768948468780,10.83667777,2939.2,2935.1,6.67061985]
[1768948469089,1.75072976,2939.8,2936.6,0.128]
[1768948469387,10.83667777,2942.1,2938.6,0.128]
[1768948469553,10.83667777,2942.1,2938.7,0.41707396]
[1768948469753,17.50729762,2940.6,2936.8,0.128]
[1768948469990,10.83667777,2940.6,2936.8,0.128]
[1768948470158,6.67061985,2941.7,2937.7,0.128]
[1768948470350,10.83667777,2942.1,2938.2,0.128]
[1768948470558,6.67061985,2941.7,2937.4,6.67061985]
[1768948470881,0.14946414,2934.4,2933.7,0.012]
[1768948471093,6.67061985,2934.2,2930.2,6.67061985]
[1768948471299,0.14946414,2934.4,2930.3,11.57333068]
[1768948471497,0.14946414,2934.4,2929.3,1.02288709]
[1768948471498,6.67061985,2932.7,2929.3,1.02288709]
[1768948471683,6.67061985,2932.0,2929.3,1.02288709]
[1768948471980,6.67061985,2933.4,2929.0,6.67061985]
[1768948472190,0.15014533,2934.5,2930.4,6.67061985]
[1768948472402,0.012,2935.5,2931.9,2.567875]
[1768948472555,1.73314648,2937.9,2933.2,6.67061985]
[1768948472893,8.40376633,2937.9,2933.6,0.128]
[1768948473100,8.40376633,2937.9,2933.8,0.128]
[1768948473399,0.03285523,2936.1,2934.0,0.128]
[1768948473602,6.67061985,2938.3,2934.6,6.67061985]
[1768948473755,0.66706198,2938.2,2934.7,0.66706198]
[1768948473954,6.67061985,2939.0,2934.7,0.66706198]
[1768948474179,6.67061985,2939.0,2934.2,11.57333068]
[1768948474180,6.67061985,2938.3,2934.4,3.294358]
[1768948474360,6.67061985,2937.5,2933.4,2.336595]
[1768948474682,6.67061985,2938.5,2934.4,6.67061985]
[1768948474880,6.67061985,2939.2,2935.2,3.985577]
[1768948475058,6.67061985,2939.9,2935.8,6.67061985]
[1768948475255,6.67061985,2939.9,2935.9,0.39466625]
[1768948475459,8.46088383,2939.9,2935.9,0.39466625]
[1768948475658,6.67061985,2939.2,2935.4,0.128]
[1768948475885,1.71136209,2939.7,2935.8,0.128]
[1768948476086,6.67061985,2939.5,2935.9,0.42031805]
[1768948476487,0.128,2939.4,2935.9,0.42031805]
[1768948476710,0.67986199,2939.3,2935.4,0.41198472]
[1768948476880,6.67061985,2938.8,2934.7,0.128]
[1768948477081,0.128,2938.7,2934.5,11.57333068]
[1768948477397,6.67061985,2936.7,2932.5,6.67061985]
[1768948477595,8.44719871,2938.6,2933.9,6.67061985]
[1768948477764,10.83667777,2940.4,2934.7,0.128]
[1768948477765,3.40240209,2939.1,2934.7,0.128]
[1768948477968,3.40240209,2939.1,2934.9,0.128]
[1768948478184,6.80457266,2939.2,2935.3,6.67061985]
[1768948478394,6.80457266,2939.2,2935.4,1.72702362]
[1768948478571,6.67061985,2938.6,2934.9,0.128]
[1768948478915,1.54350545,2939.1,2935.4,6.67061985]
[1768948478916,1.41550545,2939.1,2935.4,6.67061985]
[1768948479227,1.41550545,2939.1,2934.3,0.128]
[1768948479380,0.95000781,2939.0,2934.6,2.00615]
[1768948479706,0.82200781,2939.0,2935.7,0.128]
[1768948479904,0.67986199,2939.3,2935.7,0.128]
[1768948480102,6.67061985,2940.1,2935.7,0.128]
[1768948480103,0.128,2940.0,2935.7,0.128]
[1768948480478,6.67061985,2940.1,2935.6,6.67061985]
[1768948480479,6.67061985,2940.1,2936.0,3.925592]
[1768948480837,6.67061985,2940.1,2936.4,0.128]
[1768948480976,6.67061985,2939.1,2936.0,0.549]
[1768948481178,0.66706198,2939.0,2934.9,6.67061985]
[1768948481385,0.66706198,2939.0,2934.5,3.398721]
[1768948481386,6.67061985,2938.4,2934.5,3.398721]
[1768948481594,0.66706198,2939.0,2935.0,0.128]
[1768948482195,0.66706198,2939.0,2933.0,6.67061985]
[1768948482196,6.67061985,2937.0,2933.0,6.67061985]
[1768948482405,6.67061985,2937.7,2933.8,2.303499]
[1768948482682,6.67061985,2939.1,2935.2,0.128]
[1768948482911,6.67061985,2939.1,2935.4,0.128]
[1768948483120,6.79861985,2939.8,2935.8,6.67061985]
[1768948483324,6.67061985,2939.1,2935.2,0.549]
[1768948483632,18.269741,2939.7,2935.2,0.549]
[1768948483633,0.3615703,2939.7,2935.2,0.549]
[1768948483927,6.67061985,2938.8,2935.3,0.128]
[1768948484140,0.3615703,2938.6,2935.2,0.549]
[1768948484307,0.128,2938.0,2934.0,2.685541]
[1768948484626,0.66706198,2938.7,2935.4,0.128]
[1768948484829,6.67061985,2939.4,2935.3,0.128]
[1768948485335,8.40701076,2940.4,2936.0,0.128]
[1768948485629,6.67061985,2940.7,2936.6,6.67061985]
[1768948485930,0.128,2939.9,2936.0,0.549]
[1768948486236,0.128,2939.2,2934.8,9.33936985]
[1768948486434,6.67061985,2939.3,2935.6,0.128]
[1768948486435,0.67986199,2939.1,2935.6,0.128]
[1768948486599,0.67986199,2939.1,2934.9,2.09127005]
[1768948486934,0.67986199,2939.1,2935.5,0.128]
[1768948487510,0.67986199,2939.1,2935.7,0.128]
[1768948487711,0.128,2939.9,2935.7,0.128]
[1768948487911,10.20161985,2939.3,2934.9,2.09127005]
[1768948488143,0.128,2939.9,2933.9,0.89741189]
[1768948488144,6.67061985,2938.6,2934.5,6.67061985]
[1768948488343,0.128,2939.2,2935.2,6.67061985]
[1768948488547,0.001,2939.7,2935.5,0.128]
[1768948488849,6.67061985,2938.6,2934.8,0.128]
[1768948489005,3.531,2939.6,2935.0,0.128]
[1768948489205,6.67061985,2939.2,2935.3,0.128]
[1768948489404,0.65233621,2939.5,2935.3,0.128]
[1768948489405,0.52433621,2939.5,2935.3,0.128]
[1768948489701,6.67061985,2939.1,2935.3,0.128]
[1768948489928,0.129,2939.7,2935.7,0.128]
[1768948490232,3.66,2939.7,2936.9,0.003]
[1768948490409,0.129,2939.7,2936.9,0.003]
[1768948491143,0.129,2939.7,2934.5,18.72332776]
[1768948491144,0.131,2935.7,2932.5,0.012]
[1768948491307,1.72826662,2936.0,2931.8,6.67061985]
[1768948491308,10.20161985,2936.0,2931.8,6.67061985]
[1768948491514,6.67061985,2936.5,2932.5,6.67061985]
[1768948491715,6.67061985,2936.5,2928.9,12.05270791]
[1768948491716,6.67061985,2934.7,2928.9,12.05270791]
[1768948492010,0.3615703,2934.6,2930.4,18.72332776]
[1768948492235,6.67061985,2934.7,2930.5,6.67061985]
[1768948492448,0.66706198,2934.6,2931.2,6.67061985]
[1768948492656,4.00523847,2936.5,2932.2,6.67061985]
[1768948492816,1.47335712,2938.0,2932.2,6.67061985]
[1768948492817,2.831744,2936.7,2932.2,6.67061985]
[1768948493012,1.70222806,2937.1,2933.2,6.67475129]
[1768948493211,1.47335712,2938.0,2934.0,0.128]
[1768948493515,6.67475129,2937.5,2932.7,8.39075295]
[1768948493730,6.67475129,2937.5,2933.5,0.128]
[1768948493923,0.128,2937.8,2933.5,0.128]
[1768948494340,0.7816666,2938.0,2934.2,0.128]
[1768948494646,0.7816666,2938.0,2934.2,0.4228597]
[1768948494852,6.67475129,2938.5,2934.7,0.128]
[1768948495419,6.67475129,2937.8,2934.0,2.595298]
[1768948495623,6.67475129,2938.5,2934.2,0.128]
[1768948495834,6.67475129,2938.5,2934.6,0.128]
[1768948496058,6.67475129,2939.2,2935.1,6.67475129]
[1768948496214,6.67475129,2939.2,2933.9,7.29648336]
[1768948496215,6.67475129,2937.3,2933.9,0.547]
[1768948496415,6.67475129,2938.0,2933.9,0.547]
[1768948496619,2.9715703,2937.9,2933.9,0.547]
[1768948496936,0.128,2937.9,2933.9,0.547]
[1768948497117,0.68027513,2937.8,2933.9,0.547]
[1768948497319,0.3615703,2937.7,2933.9,0.547]
[1768948497553,0.68027513,2937.8,2933.9,0.547]
[1768948497725,0.68027513,2937.8,2934.2,0.128]
[1768948498043,0.35499546,2937.8,2934.2,0.128]
[1768948498246,0.35499546,2937.8,2934.1,6.67475129]
[1768948498545,0.35499546,2937.8,2934.1,0.72217513]
[1768948498750,0.35499546,2937.8,2934.1,2.018]
[1768948499057,0.35499546,2937.8,2934.0,3.64255]
[1768948499217,0.35499546,2937.8,2934.1,0.128]
[1768948499418,0.35499546,2937.8,2934.6,0.128]
[1768948499641,6.67475129,2938.7,2933.9,0.7805703]
[1768948499947,6.67475129,2938.0,2932.1,0.07473207]
[1768948500152,6.67475129,2938.0,2933.9,0.128]
[1768948500337,6.67475129,2937.5,2933.6,6.67475129]
[1768948500544,4.00523847,2938.4,2934.3,18.7274592]
[1768948500733,0.40052385,2938.3,2935.0,6.67475129]
[1768948501049,10.80798976,2939.0,2934.8,6.80275129]
[1768948501253,0.128,2938.9,2934.8,6.80275129]
[1768948501563,10.67998976,2939.0,2934.9,4.278441]
[1768948501766,10.67998976,2939.0,2934.5,3.943]
[1768948501938,0.128,2938.9,2934.7,0.128]
[1768948502122,18.269741,2937.5,2932.9,6.67475129]
[1768948502318,0.128,2935.8,2931.3,6.67475129]
[1768948502522,0.128,2935.8,2931.3,7.22175129]
[1768948502734,6.67475129,2935.9,2932.0,6.67475129]
[1768948502952,6.67475129,2935.9,2931.3,7.22175129]
[1768948502953,0.128,2935.7,2931.3,0.547]
[1768948503151,4.00523847,2935.6,2931.6,0.128]
[1768948503357,1.06799898,2935.8,2931.7,12.05270791]
[1768948503554,4.00523847,2936.3,2932.3,6.67475129]
[1768948503723,4.00523847,2936.4,2932.3,6.67475129]
[1768948503920,4.00523847,2936.4,2930.6,1.87233278]
[1768948503921,6.67475129,2934.2,2930.6,1.87233278]
[1768948504152,6.67475129,2934.2,2930.0,0.002]
[1768948504356,4.00523847,2934.6,2931.2,12.05270791]
[1768948504526,6.67475129,2936.1,2932.6,6.67475129]
[1768948504728,6.67475129,2936.1,2932.4,0.546]
[1768948505049,6.67475129,2936.1,2932.4,0.5119]
[1768948505225,0.66747513,2936.0,2932.4,0.5119]
[1768948505427,0.66747513,2936.0,2932.6,6.67475129]
[1768948505622,6.67475129,2936.1,2932.4,0.5119]
[1768948505838,2.453196,2936.0,2932.4,0.5119]
[1768948506348,0.128,2936.2,2932.4,0.5119]
[1768948506550,6.67475129,2936.8,2932.9,6.67475129]
[1768948506749,1.78196596,2937.7,2934.4,0.128]
[1768948506750,4.00523847,2937.7,2934.4,0.128]
[1768948506954,1.08079898,2938.8,2935.1,0.128]
[1768948507452,6.67475129,2937.9,2934.6,0.128]
[1768948507672,6.67475129,2937.9,2934.5,0.546]
[1768948507673,6.67475129,2937.1,2934.5,0.546]
[1768948507962,4.00523847,2938.5,2934.6,6.67475129]
[1768948508164,1.06799898,2938.4,2934.7,0.128]
[1768948508376,1.06799898,2938.4,2934.5,0.546]
[1768948508377,6.67475129,2937.9,2932.8,0.128]
[1768948508672,4.00523847,2938.2,2935.0,6.67475129]
[1768948508842,4.48357031,2938.8,2935.1,0.128]
[1768948509155,1.08079898,2938.8,2935.1,0.128]
[1768948509355,11.28916072,2938.8,2934.6,6.67475129]
[1768948509527,6.67475129,2938.5,2934.4,17.16725845]
[1768948509726,6.67475129,2938.4,2934.4,6.81570338]
[1768948509930,1.12891607,2938.7,2934.9,6.67475129]
[1768948510130,1.12891607,2938.7,2934.7,1.85814953]
[1768948510331,1.12891607,2938.7,2935.2,1.77257078]
[1768948510565,0.90152139,2938.6,2935.2,1.77257078]
[1768948510753,0.90152139,2938.6,2935.6,8.44503047]
[1768948510954,1.08079898,2938.8,2935.6,6.67475129]
[1768948511152,10.2082694,2938.8,2935.3,10.22042037]
[1768948511348,0.128,2938.7,2935.3,10.22042037]
[1768948511549,6.67475129,2937.1,2933.5,3.40884477]
[1768948511748,0.30329392,2938.7,2930.9,30.0]
[1768948511749,6.67475129,2934.7,2930.9,30.0]
[1768948511935,6.67475129,2935.3,2931.0,36.67475129]
[1768948512136,6.67475129,2936.0,2931.7,6.67475129]
[1768948512349,1.77589556,2936.5,2932.4,8.38525615]
[1768948512557,0.2335703,2936.6,2932.5,0.546]
[1768948512760,3.4054146,2936.5,2932.6,17.04971695]
[1768948512960,10.21241829,2937.6,2933.8,6.67475129]
[1768948513341,6.67475129,2937.3,2933.3,2.736237]
[1768948513545,0.128,2937.5,2933.3,0.128]
[1768948513752,6.67475129,2936.1,2933.2,0.546]
[1768948514153,4.00523847,2936.7,2933.8,0.003]
[1768948514344,1.06799898,2936.6,2933.8,0.003]
[1768948514545,0.2335703,2936.3,2933.8,0.003]
[1768948514865,0.2335703,2936.3,2932.1,3.41047238]
[1768948514866,0.2335703,2935.4,2932.4,0.546]
[1768948515065,0.2335703,2935.9,2933.1,3.40926767]
[1768948515248,10.08051384,2936.2,2933.1,10.22799187]
[1768948515444,3.95587879,2937.0,2933.1,17.04671607]
[1768948515445,6.67475129,2936.9,2933.1,17.04671607]
[1768948515646,0.72257513,2936.8,2933.2,1.70467161]
[1768948515967,4.00523847,2937.8,2933.8,0.128]
[1768948516138,6.80781536,2937.8,2933.9,1.74035023]
[1768948516339,6.80781536,2937.8,2934.1,1.76815456]
[1768948516550,6.80781536,2937.8,2934.0,0.128]
[1768948516551,6.80619362,2938.5,2934.6,1.76870366]
[1768948516874,0.001,2938.6,2935.4,0.128]
[1768948517038,0.001,2938.6,2935.3,6.67475129]
[1768948517039,0.001,2938.6,2936.0,6.67475129]
[1768948517241,0.001,2938.6,2935.6,10.1500546]
[1768948517464,0.001,2938.6,2935.7,0.546]
[1768948517751,0.001,2938.6,2936.4,0.128]
[1768948518138,0.001,2939.5,2937.2,1.70472431]
[1768948518378,0.001,2939.5,2937.1,6.67475129]
[1768948518532,0.001,2939.5,2937.1,8.43645524]
[1768948518736,0.001,2939.5,2937.3,4.77133]
[1768948518939,0.001,2939.5,2937.2,17.0230151]
[1768948518940,0.001,2939.7,2937.8,6.67475129]
[1768948519138,6.67475129,2942.2,2938.6,1.73751444]
[1768948519375,3.39904456,2942.1,2938.7,1.64948123]
[1768948519593,6.79671038,2942.6,2939.3,6.67475129]
[1768948519739,0.67967104,2942.5,2938.6,0.128]
[1768948519941,6.67475129,2941.9,2938.7,0.546]
[1768948520161,6.226004,2941.8,2938.7,0.546]
[1768948520359,0.128,2941.8,2938.7,0.546]
[1768948520576,6.67475129,2942.2,2938.7,0.546]
[1768948520886,0.66747513,2942.1,2939.0,0.128]
[1768948521071,6.67475129,2943.4,2939.4,1.6230237]
[1768948521272,30.0,2943.2,2939.4,1.6230237]
[1768948521450,6.79509394,2943.3,2939.4,1.6230237]
[1768948521846,4.258407,2943.2,2938.8,10.20824826]
[1768948522046,0.128,2943.1,2938.9,0.128]
[1768948522362,30.0,2943.2,2938.8,10.20824826]
[1768948522363,3.0128,2943.0,2939.1,1.80420538]
[1768948522563,10.19264091,2943.3,2939.1,1.80420538]
[1768948522564,30.0,2943.1,2939.3,6.67475129]
[1768948522766,6.7957866,2943.0,2939.4,15.23124306]
[1768948523059,6.67475129,2942.5,2938.6,3.40297936]
[1768948523250,0.66747513,2942.4,2939.3,6.80434116]
[1768948523450,13.5915732,2943.0,2939.3,6.80434116]
[1768948523451,30.0,2942.9,2939.4,0.128]
[1768948523677,0.2335703,2942.9,2939.4,0.128]
[1768948523879,0.2335703,2942.9,2939.3,18.69312143]
[1768948523880,2.243,2942.8,2939.3,10.20651174]
[1768948524082,2.243,2942.8,2938.1,3.4034622]
[1768948524083,6.67475129,2941.9,2937.4,6.67475129]
[1768948524301,30.2335703,2941.7,2937.7,3.40392005]
[1768948524448,0.2335703,2941.7,2938.0,3.40360974]
[1768948524649,0.66747513,2941.8,2938.8,13.61099768]
[1768948524883,0.001,2942.0,2939.1,1.67620538]
[1768948525085,0.001,2942.0,2939.4,6.80275129]
[1768948525251,0.001,2942.0,2939.6,1.76297323]
[1768948525453,0.001,2942.0,2939.5,0.545]
[1768948525648,6.67475129,2941.8,2938.7,6.80572869]
[1768948525872,0.66747513,2941.7,2938.9,0.128]
[1768948526057,0.001,2942.0,2939.0,6.67475129]
[1768948526270,0.001,2942.0,2939.1,10.1500546]
[1768948526488,0.001,2942.0,2939.4,0.128]
[1768948526693,0.001,2942.0,2939.2,0.128]
[1768948526694,0.001,2942.0,2940.3,6.67475129]
[1768948526854,6.67475129,2944.5,2940.5,0.128]
[1768948526855,3.39639303,2944.3,2940.5,0.128]
[1768948527054,0.3397393,2944.2,2941.0,0.128]
[1768948527293,0.3397393,2944.2,2940.9,6.67475129]
[1768948528370,0.3397393,2944.2,2941.0,1.61165651]
[1768948528699,0.3397393,2944.2,2941.0,13.60081604]
[1768948528896,6.79361356,2944.4,2941.0,13.60081604]
[1768948529065,2.348775,2944.3,2941.0,6.80040802]
[1768948529417,0.001,2944.4,2941.6,6.67475129]
[1768948529702,0.001,2944.4,2942.1,0.128]
[1768948529864,0.001,2944.4,2942.4,1.76178792]
[1768948530063,0.001,2944.4,2942.6,0.128]
[1768948530265,3.3939723,2946.4,2942.8,0.128]